bitfinex-derivatives/quotes_SOLF0:USTF0_20250831
["timestamp","ask_amount","ask_price","bid_price","bid_amount"]
[1756621455055,4.75,203.79,203.75,7.71]
[1756621455257,4.75,203.79,203.74,1.52490345]
[1756621455850,4.75,203.79,203.75,7.71]
[1756621456050,4.75,203.79,203.74,1.52490345]
[1756621456747,4.75,203.79,203.75,7.71]
[1756621457251,4.75,203.79,203.74,1.52490345]
[1756621457749,4.75,203.79,203.75,7.71]
[1756621457952,4.75,203.79,203.74,1.52490345]
[1756621458153,4.75,203.79,203.75,7.71]
[1756621459054,4.75,203.79,203.74,1.52490345]
[1756621459357,4.75,203.79,203.75,7.71]
[1756621459750,1.52490345,203.81,203.75,7.71]
[1756621459945,4.75,203.79,203.75,7.71]
[1756621460156,4.75,203.8,203.75,7.71]
[1756621460550,4.75,203.8,203.74,9.23490345]
[1756621469061,4.75,203.8,203.74,7.71]
[1756621469359,40.98,203.85,203.72,7.71]
[1756621469360,6.26490345,203.79,203.72,7.71]
[1756621470557,6.26490345,203.79,203.72,9.23490345]
[1756621472355,1.52490345,203.79,203.72,7.71]
[1756621472561,40.98,203.85,203.72,7.71]
[1756621472562,1.52490345,203.77,203.72,7.71]
[1756621472952,5.47048237,203.84,203.72,7.71]
[1756621473160,4.74,203.76,203.72,7.71]
[1756621473462,4.74,203.76,203.7,1.52490345]
[1756621473657,4.74,203.76,203.71,7.71]
[1756621473857,4.74,203.76,203.7,1.52490345]
[1756621474061,4.74,203.76,203.71,7.71]
[1756621474263,4.74,203.76,203.7,1.52490345]
[1756621475062,4.74,203.76,203.66,329.66]
[1756621475262,4.74,203.76,203.71,7.71]
[1756621476060,4.74,203.76,203.7,1.52490345]
[1756621476559,4.74,203.76,203.71,7.71]
[1756621476759,4.74,203.76,203.7,1.52490345]
[1756621476956,4.74,203.76,203.71,7.71]
[1756621477359,4.74,203.76,203.66,7.71]
[1756621477559,4.74,203.76,203.7,1.52490345]
[1756621477964,4.74,203.76,203.69,7.5]
[1756621477965,1.52490345,203.75,203.69,9.02490345]
[1756621479964,1.52490345,203.75,203.69,7.5]
[1756621480265,1.52490345,203.75,203.69,9.02490345]
[1756621480558,1.52490345,203.75,203.69,7.5]
[1756621481158,4.78,203.74,203.69,7.5]
[1756621481358,4.78,203.72,203.63,7.5]
[1756621481564,1.52490345,203.71,203.66,7.5]
[1756621481764,1.52490345,203.71,203.65,1.52490345]
[1756621481960,1.52490345,203.71,203.66,7.5]
[1756621482166,6.30490345,203.71,203.65,9.02490345]
[1756621483168,4.78,203.71,203.65,9.02490345]
[1756621483562,4.78,203.71,203.57,72.77462739]
[1756621483563,1.52490345,203.73,203.67,1.52490345]
[1756621483964,4.78,203.74,203.68,7.5]
[1756621484267,6.30490345,203.74,203.68,7.5]
[1756621484568,1.52490345,203.76,203.7,7.5]
[1756621484764,4.78,203.78,203.71,1.52490345]
[1756621484962,9.7001026,203.77,203.71,9.02490345]
[1756621485259,8.17519915,203.76,203.72,7.5]
[1756621485566,4.78,203.76,203.72,7.5]
[1756621486961,4.78,203.76,203.57,95.74729372]
[1756621487167,4.78,203.76,203.69,9.02490345]
[1756621487367,1.52490345,203.75,203.69,7.5]
[1756621487570,1.52490345,203.75,203.69,9.02490345]
[1756621488862,1.52490345,203.75,203.69,7.5]
[1756621489170,4.78,203.72,203.7,0.03416442]
[1756621491866,4.78,203.76,203.7,7.53416442]
[1756621492061,3.39656755,203.75,203.7,7.53416442]
[1756621492259,4.78,203.73,203.7,7.53416442]
[1756621495070,4.78,203.72,203.7,7.53416442]
[1756621496071,14.62,203.76,203.7,7.53416442]
[1756621496367,3.40008789,203.75,203.71,7.5]
[1756621496667,3.40008789,203.74,203.7,0.03416442]
[1756621496873,4.78,203.78,203.68,7.5]
[1756621497073,3.40154901,203.77,203.68,7.5]
[1756621497277,3.40154901,203.76,203.68,7.5]
[1756621497474,3.40154901,203.75,203.68,7.5]
[1756621497675,3.40154901,203.74,203.68,7.5]
[1756621497975,4.78,203.78,203.68,7.5]
[1756621498271,3.40196365,203.77,203.68,7.5]
[1756621498472,3.40196365,203.76,203.68,7.5]
[1756621498670,3.40196365,203.75,203.68,7.5]
[1756621498871,3.40196365,203.74,203.68,7.5]
[1756621499072,4.78,203.78,203.68,7.5]
[1756621499273,3.40204606,203.77,203.68,7.5]
[1756621499473,3.40204606,203.76,203.68,7.5]
[1756621499680,8.18204606,203.75,203.68,7.5]
[1756621499874,3.40204606,203.74,203.68,7.5]
[1756621502078,8.18204606,203.74,203.68,7.5]
[1756621502278,3.40204606,203.73,203.66,7.5]
[1756621502477,4.78,203.74,203.66,7.5]
[1756621502676,3.40202628,203.73,203.66,7.5]
[1756621502882,4.78,203.74,203.66,7.5]
[1756621505376,3.40117184,203.73,203.66,7.5]
[1756621505682,4.78,203.71,203.66,7.5]
[1756621505885,2.38593706,203.75,203.66,7.5]
[1756621506087,3.4004344,203.74,203.66,7.5]
[1756621506285,7.16593706,203.72,203.6,7.5]
[1756621506589,4.78,203.7,203.6,7.5]
[1756621507487,6.36,203.74,203.63,7.96]
[1756621507688,3.40094122,203.73,203.63,7.96]
[1756621507987,3.40094122,203.72,203.63,7.96]
[1756621508188,11.14,203.74,203.63,7.96]
[1756621508383,3.40111366,203.73,203.63,7.96]
[1756621508588,3.40111366,203.72,203.63,7.96]
[1756621508788,4.78,203.74,203.63,7.96]
[1756621508988,3.40114865,203.73,203.63,7.96]
[1756621509189,4.78,203.74,203.66,7.96]
[1756621509491,3.40135415,203.73,203.66,7.96]
[1756621509690,4.78,203.74,203.66,7.96]
[1756621509888,3.40091395,203.73,203.66,7.96]
[1756621510088,4.78,203.74,203.66,7.96]
[1756621510388,3.40876443,203.73,203.66,7.96]
[1756621510587,4.78,203.74,203.66,7.96]
[1756621510790,3.40936337,203.73,203.66,7.96]
[1756621511089,4.78,203.74,203.66,7.96]
[1756621511291,3.40936337,203.73,203.66,7.96]
[1756621511589,4.78,203.74,203.66,7.96]
[1756621511791,3.4099355,203.73,203.66,7.96]
[1756621512090,4.78,203.74,203.66,7.96]
[1756621512292,3.40937568,203.73,203.66,7.96]
[1756621512492,4.78,203.74,203.66,7.96]
[1756621512787,3.4103019,203.73,203.66,7.96]
[1756621512993,4.78,203.74,203.66,7.96]
[1756621513191,3.41026762,203.73,203.66,7.96]
[1756621513492,3.41026762,203.72,203.66,7.96]
[1756621513792,4.78,203.74,203.66,7.96]
[1756621513992,3.41152822,203.73,203.66,7.96]
[1756621514195,3.41152822,203.72,203.66,7.96]
[1756621514493,4.78,203.74,203.66,7.96]
[1756621514694,3.41227426,203.73,203.66,7.96]
[1756621514886,3.41227426,203.72,203.66,7.96]
[1756621515086,4.78,203.74,203.66,7.96]
[1756621515287,3.41227426,203.73,203.66,7.96]
[1756621515493,3.41227426,203.72,203.66,7.96]
[1756621515695,4.78,203.74,203.66,7.96]
[1756621515895,3.41170044,203.73,203.66,7.96]
[1756621516196,3.41170044,203.72,203.66,7.96]
[1756621516493,4.78,203.74,203.66,7.96]
[1756621516694,3.411839,203.73,203.66,7.96]
[1756621516894,3.411839,203.72,203.66,7.96]
[1756621517196,2.38593706,203.76,203.66,7.96]
[1756621517395,4.78,203.74,203.66,7.96]
[1756621517694,3.41267418,203.73,203.66,7.96]
[1756621517894,3.41267418,203.72,203.66,7.96]
[1756621518089,4.78,203.74,203.66,7.96]
[1756621518286,3.4126733,203.73,203.66,7.96]
[1756621518494,3.4126733,203.72,203.66,7.96]
[1756621518693,4.78,203.74,203.66,7.96]
[1756621518895,3.4127967,203.73,203.66,7.96]
[1756621519086,3.4127967,203.72,203.66,7.96]
[1756621519289,3.4131181,203.71,203.67,1.52696968]
[1756621519495,6.30696968,203.74,203.68,7.96]
[1756621519695,3.41311898,203.73,203.67,1.52696968]
[1756621519886,3.41311898,203.72,203.68,7.96]
[1756621520090,3.4131181,203.71,203.68,7.96]
[1756621520287,4.78,203.73,203.68,7.96]
[1756621520492,8.19350866,203.72,203.68,7.96]
[1756621520690,4.78,203.7,203.68,7.96]
[1756621522403,4.78,203.75,203.68,7.96]
[1756621522602,3.41374244,203.74,203.68,7.96]
[1756621522804,3.41374244,203.73,203.64,7.96]
[1756621523005,3.41374244,203.72,203.64,7.96]
[1756621523200,3.41374244,203.71,203.64,7.96]
[1756621523406,4.75,203.74,203.64,7.96]
[1756621523602,3.41436882,203.73,203.64,7.96]
[1756621523807,3.41436882,203.72,203.64,7.96]
[1756621524009,3.41436882,203.71,203.64,7.96]
[1756621524209,4.75,203.74,203.64,7.96]
[1756621524410,3.41515145,203.73,203.64,7.96]
[1756621524610,3.41515145,203.72,203.64,7.96]
[1756621524908,4.75,203.74,203.64,7.96]
[1756621524909,3.41515145,203.71,203.64,7.96]
[1756621525107,3.41515145,203.7,203.64,7.96]
[1756621525317,4.75,203.74,203.64,7.96]
[1756621525610,3.4159332,203.73,203.64,7.96]
[1756621525811,3.4159332,203.72,203.64,7.96]
[1756621526007,3.4159332,203.71,203.64,7.96]
[1756621526211,3.4159332,203.7,203.64,7.96]
[1756621526412,4.75,203.74,203.64,7.96]
[1756621526712,3.41671614,203.73,203.64,7.96]
[1756621526910,3.41671614,203.72,203.64,7.96]
[1756621527212,3.41671614,203.71,203.64,7.96]
[1756621527413,3.41671614,203.7,203.64,7.96]
[1756621527610,4.75,203.74,203.64,7.96]
[1756621527911,3.41700976,203.73,203.64,7.96]
[1756621528114,3.41700976,203.72,203.65,7.96]
[1756621528310,3.41700976,203.71,203.65,7.96]
[1756621528510,3.41700976,203.7,203.65,7.96]
[1756621528811,4.75,203.74,203.65,7.96]
[1756621529005,3.41741611,203.73,203.65,7.96]
[1756621529206,3.41741611,203.72,203.65,7.96]
[1756621529403,3.41741611,203.71,203.65,7.96]
[1756621529611,3.41741611,203.7,203.65,7.96]
[1756621529807,4.75,203.74,203.65,7.96]
[1756621530013,3.41783715,203.73,203.65,7.96]
[1756621530213,3.41783715,203.72,203.65,7.96]
[1756621530414,3.41783715,203.71,203.65,7.96]
[1756621530616,3.41783715,203.7,203.65,7.96]
[1756621530916,4.75,203.74,203.65,7.96]
[1756621531115,3.41810457,203.73,203.65,7.96]
[1756621531313,3.41810457,203.72,203.65,7.96]
[1756621531513,4.75,203.74,203.65,7.96]
[1756621531514,3.41810457,203.71,203.65,7.96]
[1756621531715,3.41810457,203.7,203.65,7.96]
[1756621532015,4.75,203.74,203.65,7.96]
[1756621532214,69.27663343,203.77,203.65,7.96]
[1756621532215,4.75,203.72,203.65,7.96]
[1756621532414,3.41967643,203.71,203.65,7.96]
[1756621532615,3.41967643,203.7,203.65,7.96]
[1756621532816,4.75,203.72,203.65,7.96]
[1756621533008,3.42088873,203.71,203.65,7.96]
[1756621533208,3.42088873,203.7,203.65,7.96]
[1756621533416,4.75,203.72,203.65,7.96]
[1756621533618,3.42115292,203.71,203.65,7.96]
[1756621533819,3.42115292,203.7,203.65,7.96]
[1756621534019,4.75,203.72,203.65,7.96]
[1756621534224,3.42115167,203.71,203.65,7.96]
[1756621534415,3.42115167,203.7,203.65,7.96]
[1756621534719,4.75,203.72,203.65,7.96]
[1756621535018,3.42100017,203.71,203.65,7.96]
[1756621535219,3.42100017,203.7,203.65,7.96]
[1756621535421,4.75,203.72,203.65,7.96]
[1756621535615,3.42173807,203.71,203.65,7.96]
[1756621535818,3.42173807,203.7,203.65,7.96]
[1756621536116,4.75,203.72,203.67,2.38615106]
[1756621536319,3.42218191,203.71,203.67,2.38615106]
[1756621536522,3.42218191,203.7,203.68,7.96]
[1756621536717,4.75,203.72,203.68,7.96]
[1756621536918,3.42217848,203.71,203.67,7.96]
[1756621537118,3.42217848,203.7,203.66,2.38615106]
[1756621537324,4.75,203.72,203.66,2.38615106]
[1756621537523,3.42211215,203.71,203.66,2.38615106]
[1756621537721,3.42211215,203.7,203.66,2.38615106]
[1756621537920,4.75,203.72,203.66,2.38615106]
[1756621538125,3.4221109,203.71,203.66,2.38615106]
[1756621538322,3.4221109,203.7,203.66,2.38615106]
[1756621538620,4.75,203.72,203.66,2.38615106]
[1756621538818,3.42205438,203.71,203.66,2.38615106]
[1756621539017,3.42205438,203.7,203.67,7.9]
[1756621539222,4.78,203.73,203.67,7.9]
[1756621539428,3.42202868,203.72,203.67,7.9]
[1756621539619,8.20202868,203.71,203.67,7.9]
[1756621539824,3.42202868,203.7,203.67,7.9]
[1756621540226,3.42202868,203.7,203.69,10.28615106]
[1756621540429,4.78,203.75,203.69,10.28615106]
[1756621540722,8.20310148,203.74,203.7,7.9]
[1756621540927,8.20310148,203.73,203.7,7.9]
[1756621541128,3.42310148,203.72,203.7,7.9]
[1756621541328,3.42310148,203.72,203.71,1.52647245]
[1756621541528,3.42310148,203.72,203.61,15.72615106]
[1756621541529,3.42310148,203.72,203.68,1.52647245]
[1756621541729,3.42310148,203.71,203.68,1.52647245]
[1756621541930,8.20310148,203.7,203.68,1.52647245]
[1756621542129,4.78,203.7,203.68,1.52647245]
[1756621542331,1.52647245,203.75,203.68,1.52647245]
[1756621542332,1.52647245,203.75,203.68,9.42647245]
[1756621542524,8.20101615,203.74,203.68,9.42647245]
[1756621542825,4.78,203.72,203.68,9.42647245]
[1756621543026,8.20101615,203.71,203.68,9.42647245]
[1756621543232,3.42101615,203.7,203.68,9.42647245]
[1756621543424,4.78,203.71,203.68,9.42647245]
[1756621543623,3.42122898,203.7,203.69,7.9]
[1756621543822,3.42122898,203.7,203.69,9.42647245]
[1756621549934,3.42122898,203.7,203.69,7.9]
[1756621550240,3.42122898,203.7,203.69,9.42647245]
[1756621561853,3.42122898,203.7,203.68,7.9]
[1756621562152,91.59695482,203.77,203.67,9.42647245]
[1756621562353,4.78,203.75,203.67,9.42647245]
[1756621562552,4.78,203.73,203.67,7.9]
[1756621562855,4.78,203.71,203.65,1.52647245]
[1756621563058,3.418037,203.7,203.65,9.42647245]
[1756621563349,4.78,203.68,203.65,9.42647245]
[1756621563854,4.78,203.68,203.66,7.9]
[1756621564755,4.78,203.68,203.65,1.52647245]
[1756621564756,4.78,203.72,203.65,1.52647245]
[1756621565056,4.78,203.7,203.65,1.52647245]
[1756621565250,4.78,203.68,203.65,9.42647245]
[1756621569357,4.78,203.68,203.65,7.9]
[1756621571359,8.16446554,203.67,203.65,7.9]
[1756621571554,4.75,203.67,203.65,7.9]
[1756621571764,4.75,203.7,203.64,1.52647245]
[1756621572057,3.41446554,203.69,203.64,9.01647245]
[1756621572359,8.16446554,203.68,203.65,7.49]
[1756621572659,3.41446554,203.67,203.65,7.49]
[1756621572855,4.75,203.7,203.65,7.49]
[1756621573152,4.75,203.68,203.65,7.49]
[1756621573357,3.41371044,203.67,203.65,7.49]
[1756621573556,4.75,203.68,203.65,7.49]
[1756621573753,3.41214937,203.67,203.65,7.49]
[1756621573959,4.75,203.68,203.65,7.49]
[1756621574153,3.41214937,203.67,203.65,7.49]
[1756621574457,4.75,203.68,203.65,7.49]
[1756621576361,4.75,203.7,203.64,1.52647245]
[1756621576562,3.41107087,203.69,203.64,9.01647245]
[1756621576864,4.75,203.67,203.64,9.01647245]
[1756621577260,4.75,203.67,203.65,7.49]
[1756621582367,4.75,203.67,203.64,1.52647245]
[1756621582670,4.75,203.67,203.6,7.49]
[1756621582968,4.75,203.67,203.65,7.49]
[1756621584566,4.78,203.7,203.64,9.01647245]
[1756621584768,4.78,203.68,203.65,7.49]
[1756621585470,4.78,203.68,203.64,1.52647245]
[1756621586367,4.78,203.68,203.65,7.49]
[1756621586963,4.78,203.68,203.64,1.52647245]
[1756621588067,4.78,203.68,203.65,7.49]
[1756621589065,4.78,203.68,203.64,1.52647245]
[1756621589273,4.78,203.68,203.59,0.85439658]
[1756621589568,4.78,203.68,203.66,7.49]
[1756621596979,1.52647245,203.71,203.65,0.0351423]
[1756621597175,3.41345644,203.7,203.66,7.49]
[1756621597382,4.78,203.68,203.66,7.49]
[1756621598182,3.41400744,203.67,203.66,7.49]
[1756621598383,3.41400744,203.67,203.65,0.0351423]
[1756621598384,4.78,203.68,203.65,0.0351423]
[1756621598583,4.78,203.68,203.66,7.56]
[1756621598784,4.78,203.68,203.65,0.0351423]
[1756621598984,4.78,203.68,203.66,7.56]
[1756621599284,3.41445065,203.67,203.66,7.56]
[1756621600384,1.52647245,203.71,203.65,0.0351423]
[1756621600584,8.18583519,203.7,203.66,7.56]
[1756621600785,3.41583519,203.69,203.66,7.56]
[1756621600981,3.41583519,203.68,203.66,7.56]
[1756621601187,3.41583519,203.67,203.66,7.56]
[1756621606786,8.18583519,203.67,203.65,0.0351423]
[1756621607091,3.41583519,203.66,203.65,0.0351423]
[1756621607789,3.41583519,203.66,203.65,7.5951423]
[1756621608690,3.41583519,203.67,203.65,7.5951423]
[1756621608888,3.41583519,203.66,203.65,7.5951423]
[1756621609187,3.41583519,203.67,203.65,7.5951423]
[1756621609993,4.77,203.66,203.65,0.0351423]
[1756621610187,8.18583519,203.66,203.65,0.0351423]
[1756621611099,3.41583519,203.66,203.65,7.5951423]
[1756621611398,4.77,203.68,203.65,7.5951423]
[1756621611597,3.41583519,203.67,203.65,7.5951423]
[1756621611896,3.41583519,203.66,203.65,7.5951423]
[1756621612593,3.41583519,203.67,203.65,7.5951423]
[1756621612793,3.41583519,203.66,203.65,7.5951423]
[1756621613499,3.41583519,203.67,203.65,7.5951423]
[1756621613698,3.41583519,203.66,203.65,7.5951423]
[1756621613898,3.41583519,203.67,203.65,7.5951423]
[1756621614199,3.41583519,203.66,203.65,7.5951423]
[1756621614396,3.41583519,203.67,203.65,7.5951423]
[1756621614695,3.41583519,203.66,203.65,7.5951423]
[1756621615097,3.41583519,203.67,203.65,7.5951423]
[1756621615297,3.41583519,203.66,203.65,7.5951423]
[1756621615501,3.41583519,203.67,203.65,7.5951423]
[1756621615699,3.41583519,203.66,203.65,7.5951423]
[1756621615994,3.41583519,203.66,203.65,0.0351423]
[1756621616192,3.42298838,203.67,203.66,7.56]
[1756621618709,8.19298838,203.67,203.65,0.0351423]
[1756621618901,3.42298838,203.66,203.65,0.0351423]
[1756621619601,8.19298838,203.66,203.65,0.0351423]
[1756621619806,3.42298838,203.66,203.65,7.5951423]
[1756621620308,4.77,203.72,203.65,7.5951423]
[1756621620509,4.77,203.7,203.67,7.56]
[1756621620809,4.77,203.7,203.66,1.52647245]
[1756621620810,3.42380118,203.69,203.66,1.52647245]
[1756621621007,3.42380118,203.68,203.67,7.56]
[1756621622408,4.77,203.74,203.67,7.56]
[1756621622607,4.77,203.72,203.69,9.08647245]
[1756621622798,8.19209464,203.71,203.69,7.56]
[1756621622998,29.91695482,203.76,203.59,8.24266633]
[1756621622999,8.19209464,203.7,203.68,9.08647245]
[1756621623207,3.42209464,203.69,203.68,9.08647245]
[1756621625010,4.77,203.7,203.68,9.08647245]
[1756621625210,1.52647245,203.74,203.68,1.52647245]
[1756621625512,4.77,203.72,203.69,7.56]
[1756621625808,3.42035502,203.71,203.69,7.56]
[1756621626008,3.42035502,203.7,203.69,7.56]
[1756621637222,4.77,203.76,203.69,7.56]
[1756621637520,3.41945888,203.75,203.72,7.2]
[1756621637722,8.18945888,203.74,203.72,7.2]
[1756621637923,3.41945888,203.73,203.72,7.2]
[1756621639222,3.41945888,203.73,203.71,1.52647245]
[1756621639414,3.41945888,203.72,203.71,1.52647245]
[1756621639815,3.41945888,203.72,203.71,8.72647245]
[1756621643328,4.77,203.76,203.71,8.72647245]
[1756621643529,4.77,203.74,203.72,7.2]
[1756621643729,3.41702298,203.73,203.72,7.2]
[1756621644525,8.18702298,203.73,203.7,1.52647245]
[1756621644728,4.77,203.73,203.71,7.2]
[1756621645825,120.14,203.76,203.7,1.52647245]
[1756621646128,4.77,203.74,203.71,7.2]
[1756621646324,3.41674558,203.73,203.71,7.2]
[1756621646528,4.77,203.74,203.71,7.2]
[1756621646730,3.41634219,203.73,203.71,8.72647245]
[1756621646931,4.77,203.74,203.71,8.72647245]
[1756621647229,3.41648061,203.73,203.72,7.2]
[1756621668954,3.41648061,203.73,203.69,1.52647245]
[1756621669157,3.41648061,203.72,203.7,7.33]
[1756621669654,3.41648061,203.72,203.69,1.52647245]
[1756621669845,3.41648061,203.72,203.7,7.33]
[1756621670252,3.41648061,203.72,203.71,1.52647245]
[1756621670445,3.41648061,203.72,203.71,8.85647245]
[1756621673657,3.41648061,203.72,203.68,1.52647245]
[1756621673855,4.77,203.7,203.68,8.85647245]
[1756621674056,3.41648061,203.69,203.68,8.85647245]
[1756621674253,4.77,203.77,203.68,8.85647245]
[1756621674458,4.77,203.77,203.74,7.33]
[1756621674752,4.77,203.77,203.73,1.52647245]
[1756621674948,4.77,203.77,203.75,7.33]
[1756621675153,4.77,203.77,203.76,4.61691392]
[1756621675358,4.77,203.77,203.75,7.33]
[1756621675655,4.77,203.77,203.76,4.61603897]
[1756621678259,4.77,203.77,203.76,4.61436937]
[1756621681365,4.77,203.83,203.76,11.94436937]
[1756621681657,30.42,203.82,203.77,4.61436937]
[1756621681967,4.77,203.81,203.78,4.61436937]
[1756621682158,5.47048237,203.84,203.79,4.61436937]
[1756621682456,120.02,203.83,203.8,4.61436937]
[1756621682762,4.77,203.82,203.81,4.61436937]
[1756621684260,4.77,203.82,203.81,4.61140036]
[1756621685163,4.77,203.82,203.81,4.60965222]
[1756621687165,6.29647245,203.82,203.81,4.60965222]
[1756621694965,6.29647245,203.82,203.81,4.60301576]
[1756621696572,4.77,203.82,203.81,4.60301576]
[1756621696871,6.29647245,203.82,203.81,4.60301576]
[1756621699075,4.77,203.82,203.81,4.60301576]
[1756621705178,1.52647245,203.82,203.81,4.60301576]
[1756621705877,1.52647245,203.82,203.81,4.62265754]
[1756621706077,6.28647245,203.82,203.81,4.62265754]
[1756621706682,6.28647245,203.82,203.81,4.62292223]
[1756621709281,121.46647245,203.82,203.81,12.52292223]
[1756621709481,119.94,203.82,203.81,12.52292223]
[1756621713383,124.7,203.82,203.81,4.62292223]
[1756621716483,124.7,203.82,203.79,0.03234771]
[1756621716786,124.7,203.82,203.8,4.62932441]
[1756621716984,124.7,203.82,203.81,4.62932441]
[1756621721283,124.68,203.82,203.81,4.62932441]
[1756621721486,119.92,203.82,203.81,12.44932441]
[1756621723882,124.67,203.82,203.81,4.62932441]
[1756621727394,124.67,203.82,203.81,4.56227728]
[1756621727891,4.75,203.82,203.81,4.56227728]
[1756621728193,124.65,203.82,203.81,4.56227728]
[1756621728587,4.75,203.82,203.81,4.56227728]
[1756621728787,124.65,203.82,203.81,4.56227728]
[1756621729193,4.75,203.82,203.81,4.56227728]
[1756621729396,124.65,203.82,203.81,4.56227728]
[1756621730993,4.75,203.82,203.81,4.56227728]
[1756621731199,124.63,203.82,203.81,4.56227728]
[1756621736912,124.63,203.82,203.81,12.38227728]
[1756621737112,119.88,203.82,203.81,12.38227728]
[1756621737614,124.63,203.82,203.81,4.56227728]
[1756621738012,124.63,203.82,203.8,7.82]
[1756621738313,124.63,203.82,203.81,4.56560962]
[1756621738911,124.63,203.82,203.81,4.56550699]
[1756621741219,124.63,203.82,203.81,4.56554422]
[1756621742517,124.63,203.82,203.79,0.03234771]
[1756621742718,6.27647245,203.8,203.79,0.03234771]
[1756621743016,126.13647245,203.8,203.79,0.03234771]
[1756621743918,124.61,203.8,203.79,0.03234771]
[1756621746817,119.84,203.8,203.79,7.85234771]
[1756621750019,4.75,203.81,203.79,7.85234771]
[1756621750220,20.46,203.8,203.79,7.85234771]
[1756621751721,20.46,203.8,203.79,0.03234771]
[1756621751922,25.23,203.8,203.79,0.03234771]
[1756621754018,4.77,203.8,203.79,0.03234771]
[1756621754225,33.97,203.8,203.79,0.03234771]
[1756621761129,4.77,203.8,203.79,0.03234771]
[1756621761432,4.77,203.82,203.79,7.77234771]
[1756621762033,29.08,203.83,203.79,7.77234771]
[1756621762233,4.77,203.82,203.79,7.77234771]
[1756621762434,29.08,203.83,203.79,7.77234771]
[1756621762834,4.79,203.82,203.79,7.77234771]
[1756621763235,29.08,203.83,203.79,7.77234771]
[1756621763536,4.79,203.82,203.79,7.77234771]
[1756621764331,29.08,203.83,203.79,7.77234771]
[1756621764535,4.79,203.82,203.79,7.77234771]
[1756621764737,29.08,203.83,203.79,7.77234771]
[1756621765537,4.79,203.82,203.79,7.77234771]
[1756621765839,29.08,203.83,203.79,7.77234771]
[1756621766239,4.79,203.82,203.79,7.77234771]
[1756621766439,29.08,203.83,203.79,7.77234771]
[1756621767141,4.79,203.82,203.79,7.77234771]
[1756621768144,29.08,203.83,203.79,7.77234771]
[1756621768741,4.79,203.82,203.79,7.77234771]
[1756621769141,29.08,203.83,203.79,7.77234771]
[1756621769538,4.79,203.81,203.79,0.03234771]
[1756621770547,1.52647245,203.82,203.79,0.03234771]
[1756621770846,4.79,203.8,203.79,0.03234771]
[1756621792360,6.31647245,203.8,203.79,0.03234771]
[1756621804265,4.79,203.8,203.79,0.03234771]
[1756621804472,6.31647245,203.8,203.79,0.03234771]
[1756621806167,4.79,203.8,203.79,0.03234771]
[1756621806472,117.21647245,203.8,203.79,0.03234771]
[1756621809371,6.31647245,203.8,203.79,0.03234771]
[1756621809571,125.97647245,203.8,203.79,0.03234771]
[1756621809973,6.31647245,203.8,203.79,0.03234771]
[1756621810273,125.97647245,203.8,203.79,0.03234771]
[1756621810472,6.31647245,203.8,203.79,0.03234771]
[1756621810674,36.35647245,203.8,203.79,0.03234771]
[1756621810974,64.89647245,203.8,203.79,0.03234771]
[1756621818670,6.31647245,203.8,203.79,0.03234771]
[1756621829478,10.24048237,203.82,203.8,7.25]
[1756621829782,1.52647245,203.81,203.8,7.25]
[1756621830481,4.77,203.82,203.8,7.25]
[1756621830679,1.52647245,203.81,203.8,7.25]
[1756621831582,4.77,203.82,203.8,7.25]
[1756621831781,1.52647245,203.81,203.8,7.25]
[1756621832283,4.77,203.82,203.8,7.25]
[1756621832486,1.52647245,203.81,203.8,7.25]